Cogmind - Beta 15 @@@ ROGUE MODE // 2025.06.24 @ 23:24:46 Player: JackNine Result: Destroyed by AT-GVU(R) with Subdweller Laser Performance ------------- Evolutions (0) 0 Regions Visited (3) 600 Robots Destroyed (26) 130 Value Destroyed (847) 847 Prototype IDs (6) 120 Alien Tech Used (0) 0 Bonus (0) 0 TOTAL SCORE: 1697 Bonus ------- None Cogmind --------- Core Integrity 0/250 Matter 175/300 Energy 199/200 System Corruption 0% Temperature Cool (6) Movement Treading (480) Ox4 Location -10/Subcaves Parts ------- > --- POWER (1) -------- Subdweller Power Source > --- PROPULSION (2) --- Light Treads Compact Wheel > --- UTILITY (2) ------ Huge Storage Unit Medium Armor Plating > --- WEAPON (2) ------- Heavy Assault Rifle Grenade Launcher > --- INVENTORY (25) --- Light Treads Light Treads Light Treads Light Treads Subdweller Monowheel Cooling System Structural Scanner Medium Armor Plating Medium Armor Plating Hardened Light Armor Plating Hardened Light Armor Plating Hardened Light Armor Plating Hardened Light Armor Plating EM Pulse Gun EM Pulse Gun Battle Rifle Hammer Peak State ------------ > --- POWER ------------ Subdweller Power Source > --- PROPULSION ------- Light Treads Spiked Treads > --- UTILITY ---------- Huge Storage Unit Medium Armor Plating > --- WEAPON ----------- Heavy Assault Rifle Subdweller Machine Gun > --- INVENTORY -------- Light Treads Light Treads Light Treads Light Treads Compact Wheel Cooling System Structural Scanner Medium Armor Plating Medium Armor Plating Hardened Light Armor Plating Hardened Light Armor Plating Hardened Light Armor Plating Hardened Light Armor Plating EM Pulse Gun EM Pulse Gun Battle Rifle Grenade Launcher Hammer [Rating: 14] Favorites ----------- Power Light Ion Engine Engine Light Ion Engine Power Core Light Nuclear Core Propulsion Compact Wheel Treads Spiked Treads Wheel Compact Wheel Utility Huge Storage Unit Device Structural Scanner Storage Huge Storage Unit Protection Medium Armor Plating Weapon EM Pulse Gun Energy Gun EM Pulse Gun Ballistic Gun Subdweller Machine Gun Launcher Grenade Launcher Impact Weapon Hammer Build | -11 -10 -10 -10 ------- Run | Yrd Mat Min Sub Slots Evolved . | . . . . Power . | . . . . Propulsion . | . . . . Utility . | . . . . Weapon . | . . . . Parts Attached 29 | 6 6 4 13 Power 5 | 1 1 . 3 Engine 4 | 1 . . 3 Core 1 | . 1 . . Reactor . | . . . . Propulsion 6 | 2 . . 4 Treads 4 | 1 . . 3 Leg . | . . . . Wheel 2 | 1 . . 1 Hover . | . . . . Flight . | . . . . Utility 6 | 1 3 . 2 Device 1 | . 1 . . Storage 2 | 1 1 . . Processor . | . . . . Hackware . | . . . . Protection 3 | . 1 . 2 Artifact . | . . . . Weapon 12 | 2 2 4 4 Energy Gun 5 | . 2 3 . Energy Cannon . | . . . . Ballistic Gun 5 | 2 . . 3 Ballistic Cannon . | . . . . Launcher 1 | . . . 1 Special Weapon . | . . . . Impact Weapon 1 | . . 1 . Slashing Weapon . | . . . . Piercing Weapon . | . . . . Special Melee Weapon . | . . . . Unidentified Prototypes . | . . . . Parts Lost 9 | . . 2 7 Power 2 | . . . 2 Propulsion 2 | . . . 2 Utility 1 | . . . 1 Weapon 4 | . . 2 2 Highest Loss Streak 3 | . . 1 3 To Critical Strikes . | . . . . Average Backups 17 | 1 9 19 19 Power . | . 1 1 . Propulsion 4 | 1 2 4 5 Utility 7 | . 2 9 8 Weapon 4 | . 2 5 4 Tool/Special . | . . . . Unused Backups 10 | . 1 . 9 Power . | . . . . Propulsion 3 | . . . 3 Utility 7 | . 1 . 6 Weapon . | . . . . Tool/Special . | . . . . Average Slot Usage (%) 99 | . 98 99 100 Engine 9 | . 3 . 13 Core 4 | . 10 14 . Treads 14 | . 14 14 14 Wheel 13 | . 14 14 13 Device 1 | . 8 . . Storage 14 | . 14 14 14 Protection 12 | . 3 14 14 Energy Gun 18 | . 19 27 16 Ballistic Gun 5 | . 8 . 6 Launcher 1 | . . . 1 Impact Weapon 2 | . . . 3 Peak Build Rating 14 | 6 12 13 14 Average Rating 11 | 4 9 12 12 On Entrance 7 | . 6 12 12 Naked Turns . | . . . . Heaviest Build 99 | 12 96 96 99 Greatest Support 20 | 16 16 16 20 Greatest Overweight (x) 6 | . 5 5 6 Average Overweight (x) 4 | . 2 5 5 Largest Inventory Capacity 25 | 8 25 25 25 Average Capacity 23 | 7 17 25 25 Most Carried 21 | 4 16 21 21 Average Carried 17 | 1 9 19 19 Final Capacity 25 | 8 25 25 25 Final Carried 19 | 4 16 19 17 Class Distribution -------------------- 100% | Mutant Dominant Class ---------------- Mutant | -10/Materials Mutant | -10/Mines Mutant | -10/Subcaves Resources | -11 -10 -10 -10 ----------- Run | Yrd Mat Min Sub Matter Collected 851 | 242 170 60 379 Remotely . | . . . . Salvage Created 1026 | . 337 441 248 Parts 49 | . 16 20 13 Haulers Intercepted . | . . . . Recyclers Shooed . | . . . . Parts Field Recycled . | . . . . Retrieved Matter . | . . . . Parts Self-Destructed 10 | . . . 10 Prevented . | . . . . Kills | -11 -10 -10 -10 ------- Run | Yrd Mat Min Sub Combat Hostiles Destroyed 23 | . 5 10 8 Guns 15 | . 4 8 3 AOE 8 | . 1 2 5 Classes Destroyed 8 | . 4 3 1 Tunneler 1 | . . 1 . Recycler 1 | . 1 . . Operator 1 | . 1 . . Watcher 2 | . 2 . . Grunt 12 | . 5 7 . Sentry 1 | . . 1 . Subdweller 8 | . . . 8 Assembled 2 | . . 2 . Best Kill Streak 3 | . 3 3 2 Combat Bots Only 3 | . 2 3 2 Max Kills in Single Turn 2 | . 1 2 1 Gunslinging . | . . . . Exploded 2 | . 1 2 1 Melee . | . . . . Uniques/NPCs Destroyed . | . . . . Combat | -11 -10 -10 -10 -------- Run | Yrd Mat Min Sub Hostile Shots Fired 89 | . 23 21 45 Missed 26 | . 7 5 14 Hits 63 | . 16 16 31 Projectile 63 | . 16 16 31 AOE 2 | . . . 2 Damage Taken 1363 | . 202 239 922 Core 259 | . 77 46 136 Absorbed by Shields . | . . . . Core Remaining (%) 100 | 100 . . . Volleys Fired 101 | . 27 25 49 Largest 2 | . 2 2 2 Hottest 80 | . 80 80 80 Shots Fired 177 | . 54 50 73 Gun 153 | . 54 50 49 Cannon . | . . . . Launcher 24 | . . . 24 Special . | . . . . Kinetic 55 | . 34 . 21 Thermal . | . . . . Explosive 24 | . . . 24 Electromagnetic 98 | . 20 50 28 Robot Hit Streak 13 | . 12 13 12 Robot Miss Streak 4 | . 4 2 1 Penetration Max . | . . . . Secondary Targets 1 | . . . 1 Max Gunslinging Chain 1 | . . . 1 Shots Hit Robots 116 | . 38 32 46 Core Hits 55 | . 14 18 23 Critical Kills . | . . . . Critical Parts Destroyed . | . . . . Critical Strikes 2 | . . 2 . Corrupt 2 | . . 2 . Melee Attacks 56 | . . 2 54 Impact 56 | . . 2 54 Slashing . | . . . . Piercing . | . . . . Sneak Attacks . | . . . . Combat Hostiles . | . . . . Follow-up Attacks . | . . . . Damage Inflicted 2336 | . 575 577 1184 Guns 1467 | . 529 448 490 Cannons . | . . . . Explosions 869 | . 46 129 694 Melee . | . . . . Ramming . | . . . . Kinetic 515 | . 299 . 216 Thermal 175 | . 46 129 . Explosive 694 | . . . 694 Electromagnetic 952 | . 230 448 274 Impact . | . . . . Slashing . | . . . . Piercing . | . . . . Highest Corruption . | . . . . Average Corruption . | . . . . Corruption Purged . | . . . . Corruption Blocked . | . . . . Overload Shots . | . . . . Overflow Damage 4 | . . 4 . Projectiles . | . . . . Explosions 4 | . . 4 . Melee . | . . . . Knockbacks . | . . . . Impact . | . . . . Kinetic . | . . . . Secondary . | . . . . Self-Inflicted Damage 80 | . . 40 40 Shots 4 | . . 2 2 Rammed . | . . . . Targets Rammed . | . . . . Kicked . | . . . . Crushed . | . . . . Highest Temperature 219 | . 114 219 . Average Temperature 65 | . 35 76 . Received Heat Transfer 402 | . 114 105 183 Siege Activations . | . . . . Martial Activations . | . . . . Shielding Activations . | . . . . Robots Disrupted . | . . . . Combat Hostiles . | . . . . Robots Corrupted . | . . . . Combat Hostiles . | . . . . Parts Fried 10 | . 1 4 5 Impact Corruptions . | . . . . Robots Melted . | . . . . Combat Hostiles . | . . . . Parts Melted 1 | . . . 1 Heat Transferred 300 | . 50 250 . Parts Sabotaged . | . . . . Parts Stolen . | . . . . Parts Stripped . | . . . . Power Chain Reactions 3 | . 1 2 . Alert | -11 -10 -10 -10 ------- Run | Yrd Mat Min Sub Maximum Alert Level . | . . . . Low Security (%) 100 | 100 100 100 . Level 1 . | . . . . Level 2 . | . . . . Level 3 . | . . . . Level 4 . | . . . . Level 5 . | . . . . High Security . | . . . . Max Security . | . . . . Peak Influence 68 | . 50 68 . Initial . | . . . . Average 10 | . 10 11 . Influence Increases 357 | . 178 179 . Destroy 0b10 Robot/C 260 | . 100 160 . Destroy 0b10 Robot/NC 25 | . 20 5 . Destroy Leader 24 | . 24 . . Successful Hack 34 | . 28 6 . Destroy Structure 14 | . 6 8 . Influence Decreases 357 | . 178 127 52 Entered New Map 28 | . . . 28 Time Decay 309 | . 178 107 24 Lost Part 20 | . . 20 . Squads Dispatched 1 | . 1 . . Investigation . | . . . . Extermination . | . . . . Reinforcement 1 | . 1 . . Assault . | . . . . Garrison . | . . . . Intercept . | . . . . Searches Triggered . | . . . . Construction Impeded . | . . . . Haulers Reinforced . | . . . . Active Scanning Responses . | . . . . Cargo Convoy Interrupts . | . . . . Stealth | -11 -10 -10 -10 --------- Run | Yrd Mat Min Sub Distress Signals . | . . . . Communications Jammed . | . . . . Distress Signals . | . . . . Times Spotted 30 | . 10 10 10 Peak Tracking Total 4 | . 2 4 2 Tactical Retreats 1 | . . 1 . Traps | -11 -10 -10 -10 ------- Run | Yrd Mat Min Sub Traps Triggered 3 | . . . 3 Indirectly . | . . . . Trap Hack Attempts . | . . . . Triggered . | . . . . Disarmed . | . . . . Reprogrammed . | . . . . Reused . | . . . . Traps Extracted . | . . . . Installed . | . . . . Triggered . | . . . . Machines | -11 -10 -10 -10 ---------- Run | Yrd Mat Min Sub Machines Disabled . | . . . . Max in Single Turn . | . . . . Machines Repaired . | . . . . Machines Dismantled . | . . . . Machines Sabotaged . | . . . . Overloaded Fab Kills . | . . . . Hacking | -11 -10 -10 -10 --------- Run | Yrd Mat Min Sub Machines Accessed 6 | . 5 1 . Terminals 6 | . 5 1 . Fabricators . | . . . . Repair Stations . | . . . . Recycling Units . | . . . . Scanalyzers . | . . . . Garrison Access . | . . . . Total Hacks 23 | . 21 2 . Successful 14 | . 12 2 . Failed 9 | . 9 . . Catastrophic . | . . . . Database Lockouts . | . . . . Manual 22 | . 20 2 . Terminals 23 | . 21 2 . Fabricators . | . . . . Repair Stations . | . . . . Recycling Units . | . . . . Scanalyzers . | . . . . Garrison Access . | . . . . Terminal Hacks 10 | . 9 1 . Robot Analysis 4 | . 4 . . Prototype ID Bank 4 | . 4 . . Terminal Index 1 | . 1 . . Zone Layout 1 | . . 1 . Fabricator Hacks . | . . . . Repair Station Hacks . | . . . . Recycling Unit Hacks . | . . . . Scanalyzer . | . . . . Garrison Access Hacks . | . . . . Unauthorized Hacks 4 | . 3 1 . Terminals 4 | . 3 1 . Botnet 4 | . 3 1 . Fabricators . | . . . . Repair Stations . | . . . . Recycling Units . | . . . . Scanalyzers . | . . . . Garrison Access . | . . . . Data Cores Recovered 1 | . 1 . . Used 1 | . 1 . . Hacking Detections 6 | . 5 1 . Full Trace Events 1 | . 1 . . Feedback Events . | . . . . Feedback Blocked . | . . . . Robot Schematics Acquired . | . . . . Robots Built . | . . . . Authchips . | . . . . Time . | . . . . Total Robot Build Rating . | . . . . Part Schematics Acquired . | . . . . Parts Built . | . . . . Authchips . | . . . . Time . | . . . . Total Part Build Rating . | . . . . Parts Repaired . | . . . . Time . | . . . . Parts Recycled . | . . . . Recycled Matter . | . . . . Retrieved Matter . | . . . . Retrieved Components . | . . . . Parts Scanalyzed . | . . . . Part Schematics Acquired . | . . . . Parts Damaged . | . . . . Bothacking | -11 -10 -10 -10 ------------ Run | Yrd Mat Min Sub Used RIF Installer . | . . . . Robots Hacked . | . . . . Non-combat . | . . . . Combat . | . . . . Robot Hacks Applied . | . . . . Relay Couplers Released . | . . . . Fabnet Peak Effective % . | . . . . Robots Rewired . | . . . . Allies Hacked . | . . . . Hacks Repelled . | . . . . Allies | -11 -10 -10 -10 -------- Run | Yrd Mat Min Sub Total Allies . | . . . . Largest Group . | . . . . Highest-Rated Group . | . . . . Highest-Rated Ally . | . . . . Total Orders . | . . . . Ally Attacks . | . . . . Total Damage . | . . . . Kills . | . . . . Allies Corrupted . | . . . . Allies Melted . | . . . . Intel | -11 -10 -10 -10 ------- Run | Yrd Mat Min Sub Active Infowar (turns) 485 | . 485 . . Structural 485 | . 485 . . Robot Analysis Total 4 | . 4 . . Derelict Logs Recovered 3 | . . 2 1 Drone Launches . | . . . . Drone Recoveries . | . . . . Exploration | -11 -10 -10 -10 ------------- Run | Yrd Mat Min Sub Turns Passed 4701 | 63 804 651 3183 Spaces Moved 2344 | 55 497 297 1495 Core 9 | 9 . . . Treads 48 | . . . 48 Legs . | . . . . Wheels 2287 | 46 497 297 1447 Hover . | . . . . Flight . | . . . . Fastest Speed 50 | 50 100 175 175 Average Speed 175 | 91 135 175 191 Slowest Speed 560 | 100 175 175 560 Overloaded Moves . | . . . . Propulsion Burnouts . | . . . . Robots Hopped . | . . . . Potential Cave-ins . | . . . . Cave-ins Triggered . | . . . . Exploration Rate (%) 45 | 4 74 52 50 Regions Visited 3 Branch Regions 2 Pre-discovered Areas 2 | . . 1 1 Known Exits Taken . | . . . . Unknown Exits Taken 3 | 1 1 1 . Scrap Searched 3 | . . 1 2 Spaces Dug 74 | . . . 74 Terrain Destroyed 169 | . 6 6 157 Melee 27 | . . . 27 Projectile . | . . . . AOE 142 | . 6 6 130 Terrain Rammed . | . . . . Walls Destroyed . | . . . . Machines Disabled . | . . . . Actions | -11 -10 -10 -10 --------- Run | Yrd Mat Min Sub Total 2655 | 64 574 374 1643 Wait 82 | . 26 41 15 Move 2341 | 54 496 296 1495 Hop . | . . . . Pick Up 24 | 4 12 4 4 Fast Attach 12 | 6 4 1 1 Attach 9 | . . 2 7 Detach 4 | . 2 1 1 Swap 20 | . 2 2 16 Drop 6 | . 5 . 1 Fire 101 | . 27 25 49 Melee 56 | . . 2 54 Ram . | . . . . Kick . | . . . . Crush . | . . . . Escape Stasis . | . . . . Rewire . | . . . . Trap . | . . . . Miscellaneous . | . . . . Route ------- -11/Scrapyard -10/Materials (discovered 4 exits: [*Mat x2] / *Min / [Sub]) -10/Mines -10/Subcaves History --------- Turn | Location | Event 25 | -11/Scrapyard | Discovered new exit (range 15) 64 | -11/Scrapyard | Entered Materials 208 | -10/Materials | Discovered new exit (range 9) 302 | -10/Materials | Build established: Mutant 446 | -10/Materials | Discovered new exit (range 10) 545 | -10/Materials | Discovered new exit (range 12) 783 | -10/Materials | Discovered new exit (range 10) 868 | -10/Materials | Entered Mines 966 | -10/Mines | Joined a pair of Derelicts in attacking an 0b10 outpost 1022 | -10/Mines | Learned location of Storage (-9) 1149 | -10/Mines | Excavation squad dispatched 1149 | -10/Mines | A large section of the Mines collapsed 1399 | -10/Mines | Excavation squad dispatched 1501 | -10/Mines | Discovered new exit (range 8) 1519 | -10/Mines | Entered Subcaves 1519 | -10/Subcaves | Learned location of Zion (-6) 1520 | -10/Subcaves | Approached by a straggling Scientist 1736 | -10/Subcaves | Core integrity fell below 50% 2320 | -10/Subcaves | Shifting Twisted Machinery released Sub. Power Source 3198 | -10/Subcaves | Ambushed by Subdweller buried in earth 3200 | -10/Subcaves | Ambushed by Subdweller buried in earth 3267 | -10/Subcaves | Lost 3 parts (1n1u1w) 3575 | -10/Subcaves | Core integrity fell below 20% 4702 | -10/Subcaves | Destroyed by AT-GVU(R) with Subdweller Laser Last Messages --------------- 04343_ Acquired 21 matter. 04347_ Acquired Sub. Power Source. 04349_ Dropped Broken Sub. Power Source. 04353_ Subatomizers dissect the Sub. Beam Cannon. 04406_ Subatomizers dissect the Sub. Beam Cannon, destroying it. 04436_ The unstable cave ceiling collapses. 04504_ 6A-FTQ(R) destroyed. 04511_ Subatomizers dissect the Sub. Monowheel. 04515_ Acquired 50 matter. 04519_ Acquired Sub. Monowheel. 04524_ Subatomizers dissect the Sub. Optics. 04548_ JK-7ZR(R) destroyed. 04561_ Acquired 34 matter. 04626_ The unstable cave ceiling collapses. 04651_ Subatomizers dissect the Disposable Heat Sink. 04678_ Subatomizers dissect the Disposable Heat Sink, destroying it. 04686_ Sub. Machine Gun destroyed. 04686_ N6-L11(R) destroyed. 04688_ The unstable cave ceiling collapses. 04701_ AT-GVU(R) affixes Scrap Shield Fragment to Scrap Shield. Map ----- +----------------------------------------------------+ | ?????????????????????????????????????????????????? | | ?????????????????????????????????????????????????? | | ?????????????????????????????????????????????????? | | ?????????????????????????????????????????????????? | | ?????????????????????????????????????????????????? | | ?????????????????????????????????????????????????? | | ?????????????????????????????????????????????????? | | ?????????????????????????????????????????????????? | | ?????????????????????????????????????????????????? | | ?????????????????????????????????????????????????? | | ?????????????????????????????????????????????????? | | ?????????????????????????????????????????????????? | | ?????????????????????????????????????????????????? | | ?????????????????????????????????????????????????? | | ??????????????????????????????????##?????????????? | | ?????????????????????????##?????" #?????????????? | | ????????????????????????? <#???? #?????????????? | | ????????????#???????????#< #??" #?????????????? | | ????????????# ###????####<<#?"" #?????????????? | | ????????????# ""#####<$$ <##" #?????????????? | | ?????????????#" # <# ? ##???????????? | | ?????????????#""## < # # #???????????? | | ????????????????#" ## < # #???????????? | | ??????????????###< "### # #???????????? | | ???#######??### < # #???????????? | | ???# #### @ %R"" ????????????? | | ???# ##### # ""## ?????????????? | | ??## ### ##????????????????? | | ??# #?????????????????? | | ??# #### "???????????????? | | ?## ## #?? "??????????????? | | ## #### # ## #?? #?????????????? | | # ##??## ### ##?" ##?????????????? | | #######?## ###### "#??"" ##?????????????? | | #??# ?# # #?# """?""" #?????????????? | | ### #??# # #?##"""?# #" #??????????????? | | ??###?## ##?##""?" "" ##?????????????? | | ??????# ######## "" #?????????????? | | ??????# # # # "##?????????????? | | ??????## "#?????????????? | | ???????### #?????????????? | | ?????????### # ## # # ###??????????????? | | ???####????## ######### ##?????????????????? | | ??## #?????## #### ! #?????????????????? | | ??# ##?###?### ## & ##????????????????? | | ??# ### ##?## & #????????????????? | | ??# ## #### ##????????????????? | | ??# ## ## ##????????????????? | | ???# ### #?# #????????????????? | | ??## # #### ####????????????????? | +----------------------------------------------------+ Best States ------------- Heat Dissipation 25 Energy Generation 15 Energy Capacity 200 Matter Stores 300 Matter Capacity 300 Sight Range 16 Terrain Scan Density 10 Armor Coverage 225 Evasion (%) 40 Recoil Reduction 2 Item Schematics ----------------- None Robot Schematics ------------------ None Fabricated ------------ Nothing Repaired ---------- Nothing Alien Tech Used ----------------- None Achievements -------------- None Challenges ------------ None Game ------ Seed ReactiveCoolantSaw Manual? 0 Play Time 00:57:29 Cumulative 354.4 hours Start 2025.06.24 @ 21:29:31 End 2025.06.24 @ 23:24:46 Sessions 42 Manual Loads 0 Difficulty Rogue Special Mode None Game No. 186 Rogue 186 Adventurer 0 Explorer 0 Win Type - Total 12 Types 7/0/3/0/0/0/2/0/0/0 Lore% 51 Gallery% 74 Achievement% 78 Wizard Run 0 Options --------- Layout 2 ASCII 0 Keyboard 1 Movement Numpad Keybinds 0 Fullscreen 2 Font 18/SmallcapsGlow Map View 38x29 Zoom Use 88% Tactical HUD 1 Map Filters NONE Filters NONE Steam 1 RUN: b8ea4d8d-31e7-410d-9670-976dcf03ecd7